bitfinex/quotes_ETHUSD_20251212
["timestamp","ask_amount","ask_price","bid_price","bid_amount"]
[1765513371144,0.4981,3242.7,3242.3,0.33593882]
[1765513371715,6.16757166,3242.8,3242.3,0.33593882]
[1765513371921,6.66567166,3242.8,3242.3,0.33593882]
[1765513373851,3.58188583,3242.8,3242.3,0.33593882]
[1765513374053,3.08378583,3242.8,3242.3,0.33593882]
[1765513374951,6.66567166,3242.8,3242.3,0.33593882]
[1765513375457,6.16757166,3242.8,3242.3,0.33593882]
[1765513375752,6.66567166,3242.8,3242.3,0.33593882]
[1765513376355,0.4945,3242.4,3242.3,0.33593882]
[1765513376926,0.4945,3242.4,3242.1,0.001]
[1765513377538,3.08409687,3242.5,3242.1,0.001]
[1765513378650,6.16819374,3242.5,3242.1,0.001]
[1765513378858,6.66629374,3242.5,3242.1,0.001]
[1765513379335,0.4945,3242.2,3242.1,0.001]
[1765513379531,3.57882545,3242.2,3242.1,0.001]
[1765513379741,0.1916,3242.9,3242.1,0.001]
[1765513379930,0.487,3242.7,3242.1,0.001]
[1765513380932,3.57093422,3242.7,3242.1,0.001]
[1765513381258,3.08393422,3242.7,3242.1,0.001]
[1765513382943,3.08375477,3242.8,3242.1,0.001]
[1765513383191,3.08366755,3242.9,3242.2,0.405504]
[1765513383333,0.4981,3243.6,3242.6,0.405504]
[1765513383534,0.487,3243.5,3242.6,0.405504]
[1765513383937,0.487,3243.5,3242.6,0.892504]
[1765513384533,0.4981,3243.4,3242.6,0.892504]
[1765513385188,6.16655874,3243.3,3242.6,0.892504]
[1765513385334,3.08327937,3243.3,3242.6,1.29016738]
[1765513385663,3.58137937,3243.3,3242.6,0.892504]
[1765513385865,3.58137937,3243.3,3242.6,3.97639982]
[1765513386156,3.58137937,3243.3,3242.6,0.892504]
[1765513386462,3.58137937,3243.3,3242.6,3.9764343]
[1765513386831,3.58137937,3243.3,3242.6,0.892504]
[1765513387039,3.08321327,3243.4,3242.7,3.48144409]
[1765513387438,3.57010902,3243.5,3242.7,3.48144409]
[1765513387633,6.65321804,3243.5,3242.7,0.39765122]
[1765513388052,6.65321804,3243.5,3242.7,3.48148448]
[1765513388251,7.15131804,3243.5,3242.7,3.48148448]
[1765513388450,4.06820902,3243.5,3242.8,0.43739885]
[1765513389977,0.58047529,3243.8,3242.8,3.52113959]
[1765513390282,1.06747529,3243.8,3242.8,0.43739885]
[1765513390449,0.4981,3243.7,3242.6,0.892504]
[1765513391082,0.4981,3243.7,3242.6,3.97640646]
[1765513391376,0.4981,3243.7,3242.6,0.892504]
[1765513391777,0.4981,3243.7,3242.7,0.405504]
[1765513391778,0.9851,3243.7,3242.7,0.405504]
[1765513391976,0.58047529,3243.5,3242.8,3.08371906]
[1765513392149,0.58047529,3243.5,3242.9,0.34892231]
[1765513392341,1.07857529,3243.5,3242.7,0.405504]
[1765513393174,0.4781,3243.4,3242.7,0.405504]
[1765513393543,0.4781,3243.4,3242.7,3.48934062]
[1765513393875,0.4781,3243.4,3242.7,0.405504]
[1765513394073,3.08327937,3243.3,3242.7,0.405504]
[1765513394275,3.08327937,3243.3,3242.8,0.3976413]
[1765513394655,0.4781,3243.2,3242.6,0.487]
[1765513396150,3.56153512,3243.2,3242.6,0.487]
[1765513396573,3.56153512,3243.2,3242.6,3.5709429]
[1765513397078,3.56153512,3243.2,3242.6,0.487]
[1765513397978,0.4927,3243.1,3242.4,3.08410138]
[1765513398179,0.4927,3243.1,3242.4,3.74964311]
[1765513398180,3.57625602,3243.1,3242.4,3.74964311]
[1765513398382,3.57625602,3243.1,3242.4,0.66554173]
[1765513398580,3.08355602,3243.1,3242.4,0.66554173]
[1765513398780,0.4927,3243.0,3242.4,0.66554173]
[1765513399154,0.1835,3242.9,3242.4,0.66554173]
[1765513400085,0.4589,3242.5,3242.2,0.487]
[1765513400259,0.6762,3242.9,3242.1,0.001]
[1765513400260,3.75416199,3242.9,3242.1,0.001]
[1765513400461,0.58047529,3243.1,3242.3,0.405504]
[1765513400665,0.6762,3243.4,3242.4,0.39768079]
[1765513400982,0.58047529,3243.2,3242.4,0.39768079]
[1765513401150,0.487,3243.3,3242.4,0.39768079]
[1765513401480,1.06747529,3243.3,3242.4,6.10644607]
[1765513401656,0.58047529,3243.3,3242.4,6.10644607]
[1765513401977,0.58047529,3243.3,3242.5,0.65119501]
[1765513402181,3.57616715,3243.2,3242.4,3.48175824]
[1765513403278,0.4927,3243.2,3242.4,6.56589344]
[1765513403479,0.4927,3243.2,3242.4,3.48175824]
[1765513403686,3.57611786,3243.2,3242.4,3.48175824]
[1765513404000,0.4927,3243.2,3242.4,6.56589344]
[1765513404208,3.0831528,3243.5,3242.5,1.10264374]
[1765513404370,4.0627197,3243.6,3242.5,1.10264374]
[1765513404576,0.4927,3243.9,3242.7,6.11426928]
[1765513404910,3.08283962,3243.8,3242.9,0.405504]
[1765513405204,3.08283962,3243.8,3242.8,0.405504]
[1765513405370,6.16567924,3243.8,3243.0,0.405504]
[1765513405574,6.65837924,3243.8,3243.0,0.405504]
[1765513405790,6.16567924,3243.8,3243.0,0.405504]
[1765513405994,0.4927,3243.7,3243.0,0.405504]
[1765513406701,3.57563219,3243.7,3243.0,0.405504]
[1765513407274,0.4927,3243.6,3243.1,0.4100574]
[1765513407474,0.4927,3243.6,3243.0,0.405504]
[1765513407694,0.4927,3243.6,3242.9,0.405504]
[1765513407898,0.4927,3243.6,3242.9,3.48914646]
[1765513408305,0.4927,3243.6,3242.9,0.405504]
[1765513408492,0.4927,3243.6,3242.9,3.08364384]
[1765513408691,3.08293219,3243.7,3242.9,3.749093]
[1765513409098,3.57563219,3243.7,3242.9,3.749093]
[1765513411683,3.08280589,3243.8,3242.9,3.749093]
[1765513412007,0.4927,3243.6,3242.9,3.749093]
[1765513414309,3.57576725,3243.6,3242.9,3.749093]
[1765513414510,3.57576725,3243.6,3243.0,0.4236093]
[1765513416503,3.08306725,3243.6,3243.0,0.4236093]
[1765513416707,0.4927,3243.5,3243.0,0.4236093]
[1765513416931,0.4927,3243.5,3242.1,6.87539037]
[1765513416932,0.4589,3243.1,3242.1,0.001]
[1765513417220,0.4927,3243.5,3242.2,3.08432115]
[1765513417221,0.4589,3243.0,3242.2,3.08432115]
[1765513417511,0.6762,3242.9,3242.1,0.488]
[1765513417716,0.6762,3242.9,3242.2,0.3573454]
[1765513417879,3.57645477,3242.8,3242.2,0.3573454]
[1765513418079,3.57645477,3242.8,3242.1,0.001]
[1765513418080,0.4589,3242.3,3242.1,0.001]
[1765513419714,0.4927,3242.5,3242.1,0.001]
[1765513420415,0.4927,3242.7,3242.1,0.001]
[1765513422316,0.4589,3242.2,3242.1,0.001]
[1765513422906,0.9516,3242.2,3242.1,0.001]
[1765513423307,0.487,3242.6,3242.1,0.001]
[1765513423308,3.08407338,3242.5,3242.1,0.001]
[1765513423499,0.4728,3242.4,3242.1,0.001]
[1765513424614,0.4728,3242.7,3242.1,0.0318442]
[1765513424802,3.55666651,3242.7,3242.1,0.001]
[1765513426114,0.4728,3242.6,3242.1,0.001]
[1765513426617,0.4587,3242.2,3242.1,0.001]
[1765513426989,0.9315,3242.2,3242.1,0.001]
[1765513427411,0.4587,3242.2,3242.1,0.001]
[1765513430012,0.4728,3242.4,3242.1,0.001]
[1765513430262,0.487,3242.6,3242.1,0.001]
[1765513430419,3.08386041,3242.7,3242.1,0.001]
[1765513430594,3.08386041,3242.7,3242.1,0.3128456]
[1765513430934,0.1916,3244.4,3242.2,0.405504]
[1765513431094,1.39875307,3243.3,3242.2,0.405504]
[1765513431411,0.4728,3243.3,3242.2,0.405504]
[1765513431596,0.4728,3243.2,3242.2,0.405504]
[1765513431796,0.1993,3243.5,3242.4,0.405504]
[1765513432019,0.9598,3243.4,3242.4,0.405504]
[1765513432208,6.16655874,3243.3,3242.4,0.405504]
[1765513432415,0.4728,3243.2,3242.5,0.41759526]
[1765513434229,3.08346951,3243.1,3242.5,0.41759526]
[1765513434728,3.08346951,3243.1,3242.5,0.90459526]
[1765513434894,3.08346951,3243.1,3242.5,0.487]
[1765513436534,3.55626951,3243.1,3242.5,0.487]
[1765513436711,6.63973902,3243.1,3242.5,0.487]
[1765513436914,3.55626951,3243.1,3242.5,0.487]
[1765513438431,3.08346951,3243.1,3242.5,0.487]
[1765513438633,0.4728,3243.0,3242.5,0.487]
[1765513441229,0.4728,3243.0,3242.5,0.487]
[1765513441616,0.4728,3243.0,3242.5,3.57103776]
[1765513441812,0.4728,3243.3,3242.5,6.68591825]
[1765513442035,0.4728,3244.1,3242.6,6.11415614]
[1765513442371,0.9598,3244.0,3242.8,0.405504]
[1765513442662,3.08270908,3243.9,3243.0,0.405504]
[1765513442951,3.55550908,3243.9,3243.0,0.405504]
[1765513443132,0.4728,3243.8,3243.0,0.405504]
[1765513444659,0.4728,3243.8,3243.1,3.08346951]
[1765513444854,0.4728,3243.8,3243.2,0.65725106]
[1765513445953,3.55565703,3243.8,3243.2,0.65725106]
[1765513446555,3.08251903,3244.1,3243.2,0.65725106]
[1765513446759,3.55542206,3244.0,3243.3,3.08327937]
[1765513446934,3.55542206,3244.0,3243.3,3.76876283]
[1765513448953,0.92564737,3244.2,3243.4,0.03083184]
[1765513449143,0.9598,3244.3,3243.4,0.03083184]
[1765513449745,0.4728,3244.2,3243.4,0.03083184]
[1765513450043,3.55525652,3244.2,3243.4,3.11398853]
[1765513450244,3.55525652,3244.2,3243.5,0.4286472]
[1765513450447,0.4728,3244.1,3243.5,0.4286472]
[1765513452463,3.55534489,3244.1,3243.5,0.4286472]
[1765513452966,0.4641,3244.0,3243.5,0.4286472]
[1765513453339,3.08254489,3244.1,3243.5,0.4286472]
[1765513453558,3.56944484,3244.2,3243.5,0.4286472]
[1765513453745,3.56944484,3244.2,3243.6,0.35118117]
[1765513454074,4.03354484,3244.2,3243.6,0.35118117]
[1765513454438,3.08244484,3244.2,3243.6,0.35118117]
[1765513454634,0.6786,3244.4,3243.6,6.51713952]
[1765513454860,0.4661,3244.8,3243.8,5.70408177]
[1765513455075,0.4661,3244.8,3243.9,1.06824548]
[1765513455573,3.54797163,3244.8,3243.9,1.06824548]
[1765513455784,3.54797163,3244.8,3243.8,0.405504]
[1765513456875,3.54797163,3244.8,3244.0,0.405504]
[1765513457338,3.08387163,3244.8,3244.0,0.405504]
[1765513457535,0.4641,3244.7,3244.0,0.405504]
[1765513459073,0.4641,3244.7,3244.1,3.08251903]
[1765513459280,0.4641,3244.7,3244.2,0.3488023]
[1765513460888,3.08389247,3244.8,3244.2,0.3488023]
[1765513461185,0.002,3244.8,3244.3,0.405504]
[1765513461389,0.4796,3244.8,3244.3,0.405504]
[1765513461545,0.4796,3244.8,3244.2,0.405504]
[1765513461746,0.4796,3244.8,3244.3,0.3487951]
[1765513462146,0.4796,3244.8,3244.3,0.7542991]
[1765513462994,3.56151369,3244.8,3244.3,0.7542991]
[1765513463478,0.4776,3244.7,3244.3,0.7542991]
[1765513467389,3.55956001,3244.7,3244.3,0.7542991]
[1765513467683,3.55956001,3244.7,3244.3,0.405504]
[1765513467861,3.08385404,3244.8,3244.3,0.405504]
[1765513468061,0.4776,3244.6,3244.3,0.405504]
[1765513469587,0.4884,3244.4,3244.1,0.487]
[1765513469982,0.966,3244.4,3244.1,0.487]
[1765513470563,0.966,3244.4,3244.1,0.84396096]
[1765513470762,0.4884,3244.4,3244.1,0.84396096]
[1765513471402,0.4884,3244.2,3244.1,0.487]
[1765513472195,0.4776,3244.3,3244.1,0.487]
[1765513472375,0.4776,3244.6,3244.1,0.487]
[1765513472571,0.4776,3244.5,3244.1,3.56951008]
[1765513472772,3.56148978,3244.8,3244.1,3.56951008]
[1765513472977,0.4776,3244.7,3244.1,0.487]
[1765513473377,0.4776,3244.7,3244.1,3.56948714]
[1765513474293,3.55955717,3244.7,3244.1,3.56948714]
[1765513474871,3.55955717,3244.7,3244.1,0.487]
[1765513475078,3.55955717,3244.7,3244.1,3.56951471]
[1765513476294,0.4776,3244.6,3244.1,0.487]
[1765513476799,0.4884,3244.2,3244.1,0.487]
[1765513476996,0.4776,3244.6,3244.1,0.487]
[1765513478703,3.55969054,3244.6,3244.1,0.487]
[1765513479420,0.4776,3244.6,3244.1,0.487]
[1765513479595,0.4776,3244.5,3244.1,0.487]
[1765513479783,3.08388775,3244.8,3244.1,0.84396976]
[1765513480109,3.56148775,3244.8,3244.1,3.08250653]
[1765513480711,3.08388775,3244.8,3244.0,0.405504]
[1765513480900,0.4776,3244.7,3244.0,0.405504]
[1765513483713,3.55956915,3244.7,3244.0,3.0825452]
[1765513485111,3.08196915,3244.7,3244.0,3.0825452]
[1765513485320,0.4801,3244.6,3244.1,0.30825452]
[1765513488114,3.082139,3244.5,3244.1,0.30825452]
[1765513488315,0.4999,3244.2,3243.8,0.487]
[1765513488910,0.4999,3244.2,3243.8,3.56978331]
[1765513489821,0.4999,3244.2,3243.8,0.487]
[1765513490342,0.98,3244.2,3243.8,0.487]
[1765513490917,3.08212449,3244.6,3243.8,3.56980374]
[1765513491110,0.4801,3244.5,3243.8,4.23507223]
[1765513492126,3.56227558,3244.5,3243.8,4.23507223]
[1765513492422,3.08217558,3244.5,3243.8,4.23507223]
[1765513492622,0.4801,3244.5,3243.8,4.23507223]
[1765513493502,0.4801,3244.5,3243.9,1.13730071]
[1765513494228,3.082234,3244.4,3243.9,0.73179671]
[1765513494392,3.082234,3244.4,3243.8,3.56980403]
[1765513494594,0.4801,3244.3,3243.8,3.56980403]
[1765513494808,0.4801,3244.3,3243.8,0.487]
[1765513495902,0.4801,3244.3,3243.8,3.56979845]
[1765513496422,0.487,3244.6,3243.9,0.405504]
[1765513496620,0.4801,3244.5,3244.0,0.70581066]
[1765513497537,0.4999,3244.1,3243.8,0.487]
[1765513499123,0.4801,3244.3,3243.8,3.56980345]
[1765513499423,0.4801,3244.3,3243.8,3.56979974]
[1765513499927,3.56244401,3244.3,3243.8,0.487]
[1765513500521,0.4801,3244.2,3243.8,0.487]
[1765513500824,6.16408802,3244.6,3243.8,0.84399807]
[1765513500995,0.4801,3244.5,3243.8,0.487]
[1765513502729,3.082234,3244.4,3243.8,0.487]
[1765513503228,3.562334,3244.4,3243.8,0.487]
[1765513503599,0.4801,3244.3,3243.8,0.487]
[1765513504299,0.489,3244.8,3243.9,0.405504]
[1765513504696,0.4821,3244.8,3243.9,0.405504]
[1765513504933,3.08194902,3244.7,3243.9,0.405504]
[1765513505117,0.4801,3244.6,3244.1,0.405504]
[1765513505318,0.4801,3244.6,3244.0,0.39752298]
[1765513505519,0.4999,3244.1,3243.9,0.405504]
[1765513505834,0.4999,3244.1,3243.8,0.487]
[1765513506034,0.98,3244.1,3243.8,0.487]
[1765513506738,0.4801,3244.0,3243.6,0.405504]
[1765513506933,0.4999,3244.1,3243.6,3.48845448]
[1765513507236,0.002,3244.8,3244.0,0.77629208]
[1765513507409,0.002,3244.8,3244.0,1.29411822]
[1765513507801,0.002,3244.8,3244.3,0.405504]
[1765513508014,0.002,3244.8,3244.6,0.405504]
[1765513508619,0.002,3244.8,3244.7,3.48745302]
[1765513508917,0.002,3244.8,3244.7,4.22204085]
[1765513510338,0.002,3244.8,3244.7,1.14009183]
[1765513511609,0.002,3244.8,3244.7,0.405504]
[1765513512020,0.5019,3244.8,3244.4,3.56920893]
[1765513512230,0.982,3244.8,3244.5,0.405504]
[1765513513137,0.982,3244.8,3244.5,3.48762621]
[1765513513430,0.002,3244.8,3244.5,0.405504]
[1765513514134,0.455,3244.8,3244.6,0.39747159]
[1765513514433,0.002,3244.8,3244.6,0.39747159]
[1765513516537,0.002,3244.8,3244.5,0.405504]
[1765513517430,0.455,3244.8,3244.5,0.405504]
[1765513517841,0.455,3244.8,3244.4,3.56922078]
[1765513519044,0.455,3244.8,3244.5,3.08211019]
[1765513519250,0.002,3244.8,3244.5,3.08211019]
[1765513519457,0.002,3244.8,3244.6,3.43891966]
[1765513520837,0.002,3244.8,3244.7,0.03081949]
[1765513524057,0.002,3244.8,3244.7,3.11276851]
[1765513524436,0.002,3244.8,3244.7,3.08194902]
[1765513527869,0.002,3244.8,3244.6,3.43892915]
[1765513528048,0.002,3244.8,3244.7,0.34389291]
[1765513528432,0.002,3244.8,3244.7,3.42584193]
[1765513529241,0.002,3244.8,3244.7,3.83134593]
[1765513530532,0.944,3244.8,3244.7,0.74939691]
[1765513531357,0.944,3244.8,3244.7,0.34389291]
[1765513531532,0.944,3244.8,3244.6,3.4389345]
[1765513532661,0.942,3244.7,3244.5,3.08210415]
[1765513533045,0.942,3244.6,3244.5,3.48760815]
[1765513533243,0.4717,3244.6,3244.5,3.48760815]
[1765513533434,0.942,3244.6,3244.5,0.405504]
[1765513534455,0.942,3244.6,3244.0,3.79]
[1765513534757,0.4717,3244.1,3243.8,3.56873996]
[1765513535456,0.942,3244.1,3243.9,0.405504]
[1765513535865,0.4717,3244.0,3243.9,0.405504]
[1765513536055,0.942,3244.0,3243.8,3.56873996]
[1765513536362,0.4717,3243.9,3243.8,3.56873996]
[1765513536565,0.4703,3244.3,3243.8,4.27366648]
[1765513536740,3.55224944,3244.7,3243.9,3.48813296]
[1765513537254,0.4703,3244.6,3243.9,3.48813296]
[1765513537452,0.4703,3244.6,3244.0,0.77617994]
[1765513538471,0.4703,3244.6,3243.9,0.405504]
[1765513540464,3.5524051,3244.6,3243.9,3.48820819]
[1765513540665,0.4703,3244.6,3243.9,3.48820819]
[1765513540864,0.4723,3244.8,3243.9,6.57091727]
[1765513541065,3.55415457,3244.8,3243.9,6.94170535]
[1765513541259,3.55415457,3244.8,3244.0,0.81326319]
[1765513541460,0.4703,3244.7,3244.0,0.81326319]
[1765513542667,3.08204401,3244.6,3244.0,0.81326319]
[1765513543573,0.4689,3244.5,3244.0,3.89585962]
[1765513543870,0.4689,3244.5,3244.0,0.81326319]
[1765513544573,0.4689,3244.5,3243.9,0.405504]
[1765513544752,0.4689,3244.5,3243.9,3.48821055]
[1765513545758,3.55277869,3244.8,3243.9,6.57091963]
[1765513546272,0.4689,3244.7,3243.9,6.57091963]
[1765513547064,3.55089529,3244.7,3243.9,3.48821055]
[1765513547461,0.4689,3244.6,3243.9,3.48821055]
[1765513547665,0.4689,3244.6,3243.9,4.23099068]
[1765513548178,0.4689,3244.6,3243.9,7.31369976]
[1765513552496,0.4689,3244.6,3243.9,4.23099068]
[1765513555494,3.55096188,3244.6,3243.9,4.23099068]
[1765513557682,0.4689,3244.5,3243.9,4.23099068]
[1765513557904,0.4689,3244.5,3244.0,3.55430757]
[1765513559191,0.4689,3244.5,3244.0,6.63692162]
[1765513560090,0.4689,3244.7,3244.0,6.63692162]
[1765513562074,0.4689,3244.7,3244.1,0.405504]
[1765513562592,0.002,3244.8,3244.3,0.405504]
[1765513562893,0.002,3244.8,3244.6,0.405504]
[1765513563190,0.002,3244.8,3244.7,0.6569782]
[1765513564783,0.9229,3244.8,3244.7,0.6569782]
[1765513565190,0.454,3244.8,3244.7,0.6569782]
[1765513565416,0.454,3244.8,3244.7,3.08194902]
[1765513565697,0.002,3244.8,3244.7,3.08194902]
[1765513567193,0.002,3244.8,3244.7,3.48745302]
[1765513567491,0.002,3244.8,3244.7,4.06792831]
[1765513567880,0.002,3244.8,3244.7,4.19126423]
[1765513568081,0.002,3244.8,3244.7,5.57446493]
[1765513568478,0.002,3244.8,3244.7,5.60528442]
[1765513568674,0.002,3244.8,3244.7,5.57446493]
[1765513570394,0.002,3244.8,3244.7,5.60528442]
[1765513571100,0.002,3244.8,3244.7,5.57446493]
[1765513571292,0.002,3244.8,3244.7,5.60528442]
[1765513571670,0.002,3244.8,3244.7,5.57446493]
[1765513574189,0.002,3244.8,3244.7,5.60528442]
[1765513575269,0.002,3244.8,3244.7,5.57446493]
[1765513578003,0.002,3244.8,3244.7,23.02594842]
[1765513578198,0.002,3244.8,3244.7,15.21824493]
[1765513578981,0.002,3244.8,3244.7,12.63640693]
[1765513580106,0.002,3244.8,3244.7,14.69219393]
[1765513580307,0.002,3244.8,3244.7,5.57446493]
[1765513580605,0.002,3244.8,3244.7,8.35456093]
[1765513581174,0.002,3244.8,3244.7,16.06576593]
[1765513582297,0.002,3244.8,3244.7,18.27016493]
[1765513583316,0.002,3244.8,3244.7,13.67717093]
[1765513583888,0.002,3244.8,3244.7,11.27141575]
[1765513584104,0.002,3244.8,3244.7,14.75633175]
[1765513585204,0.002,3244.8,3244.7,36.83634775]
[1765513586205,0.002,3244.8,3244.7,41.27141575]
[1765513590415,0.6549,3245.9,3245.4,6.10245482]
[1765513590617,0.6549,3245.9,3245.4,7.16893011]
[1765513590914,0.4715,3245.8,3245.4,7.16893011]
[1765513591121,0.4715,3245.8,3245.4,7.29223486]
[1765513591614,0.4989,3245.5,3245.4,10.37351913]
[1765513591831,0.9684,3245.5,3245.4,4.67656831]
[1765513592029,0.9684,3245.5,3245.4,5.48944315]
[1765513595519,0.9684,3245.5,3245.4,4.90896786]
[1765513595832,0.9684,3245.5,3245.4,3.97278827]
[1765513596716,0.4989,3245.5,3245.4,3.97278827]
[1765513596916,0.002,3245.5,3245.4,3.97278827]
[1765513598737,0.9684,3245.5,3245.4,3.97278827]
[1765513604018,0.4989,3245.5,3245.4,3.97278827]
[1765513604218,0.4989,3245.5,3245.4,4.71528511]
[1765513605332,0.973,3245.5,3245.0,0.9249282]
[1765513605536,0.4854,3245.1,3245.0,3.08157235]
[1765513605725,0.4854,3245.1,3245.0,3.48707635]
[1765513605926,0.9595,3245.1,3245.0,3.48707635]
[1765513606235,0.9595,3245.1,3245.0,3.08157235]
[1765513606441,0.9595,3245.1,3245.0,3.48707635]
[1765513608436,0.9595,3245.1,3245.0,0.405504]
[1765513609715,0.9595,3245.1,3245.0,3.48716809]
[1765513611149,0.9595,3245.1,3245.0,3.32019046]
[1765513613637,0.4854,3245.1,3245.0,3.32019046]
[1765513613940,0.9595,3245.1,3245.0,3.32019046]
[1765513614729,0.4741,3245.4,3245.1,0.405504]
[1765513614928,0.4761,3245.5,3245.2,0.03081474]
[1765513615239,0.002,3245.5,3245.3,1.26229208]
[1765513615441,0.002,3245.5,3245.4,3.08128427]
[1765513615640,0.002,3245.5,3245.4,3.48678827]
[1765513615858,0.9615,3245.5,3245.4,0.405504]
[1765513616310,0.9615,3245.5,3245.3,0.486]
[1765513616514,0.9595,3245.4,3245.0,0.891504]
[1765513616743,0.4854,3245.1,3245.0,0.891504]
[1765513617116,0.9595,3245.1,3245.0,0.891504]
[1765513617317,0.9595,3245.1,3245.0,3.97316809]
[1765513618822,0.9595,3245.1,3245.0,0.891504]
[1765513623254,0.9595,3245.1,3244.5,0.92506795]
[1765513623424,0.4854,3244.6,3244.5,1.06647529]
[1765513623623,0.4854,3244.6,3244.5,1.55897404]
[1765513623825,0.9595,3244.6,3244.5,1.55897404]
[1765513624429,0.9595,3244.6,3244.5,0.486]
[1765513624966,0.9595,3244.6,3244.5,0.891504]
[1765513628355,0.9595,3244.6,3244.1,3.08248798]
[1765513628559,0.9595,3244.5,3244.2,3.48790342]
[1765513628735,0.4741,3244.5,3244.2,3.48790342]
[1765513628927,0.4854,3244.3,3244.2,3.48790342]
[1765513629129,0.9595,3244.3,3244.2,3.48790342]
[1765513630266,0.9595,3244.3,3244.2,0.405504]
[1765513632304,0.9595,3244.3,3244.1,0.486]
[1765513632573,0.9595,3244.2,3244.1,0.891504]
[1765513632938,0.9595,3244.2,3244.1,0.486]
[1765513634143,0.9595,3244.2,3243.9,3.08270124]
[1765513634472,0.458,3244.1,3244.0,0.405504]
[1765513634646,0.458,3244.1,3243.8,3.56878169]
[1765513634847,0.458,3244.1,3243.9,0.405504]
[1765513635770,0.4901,3244.0,3243.9,0.405504]
[1765513636274,0.9481,3244.0,3243.9,0.405504]
[1765513638664,0.9481,3244.0,3243.8,0.486]
[1765513638850,1.1448,3243.9,3243.8,0.891504]
[1765513639045,1.1448,3243.9,3243.8,0.486]
[1765513639980,1.1448,3243.9,3243.8,3.56880411]
[1765513641169,3.08207586,3244.6,3243.8,6.65160822]
[1765513641368,0.81544759,3244.5,3243.9,0.405504]
[1765513641567,0.4881,3244.5,3243.9,0.405504]
[1765513641749,0.4881,3244.4,3243.9,0.405504]
[1765513642481,0.4881,3244.4,3244.0,3.08261405]
[1765513643473,0.498,3244.1,3243.9,3.48818475]
[1765513644578,0.9861,3244.1,3243.9,3.48818475]
[1765513645461,1.985,3244.0,3243.9,3.48818475]
[1765513649577,2.483,3244.0,3243.9,3.48818475]
[1765513650080,1.985,3244.0,3243.9,3.48818475]
[1765513652290,1.985,3244.0,3243.9,4.19399258]
[1765513657689,2.483,3244.0,3243.9,4.19399258]
[1765513657864,2.9711,3244.0,3243.9,0.405504]
[1765513660197,2.9711,3244.0,3243.9,3.48821308]
[1765513660500,2.483,3244.0,3243.9,3.48821308]
[1765513660692,1.985,3244.0,3243.9,3.48821308]
[1765513661196,2.483,3244.0,3243.9,3.48821308]
[1765513663774,1.985,3244.0,3243.9,3.48821308]
[1765513664094,1.985,3244.0,3243.9,4.19402381]
[1765513670003,2.4605,3244.0,3243.9,4.19402381]
[1765513670183,2.4605,3244.0,3243.9,3.48821308]
[1765513670376,1.985,3244.0,3243.9,3.48821308]
[1765513671480,2.4605,3244.0,3243.9,3.48821308]
[1765513672513,1.985,3244.0,3243.9,3.48821308]
[1765513688428,2.4605,3244.0,3243.9,3.48821308]
[1765513688603,2.9538,3244.0,3243.9,3.48821308]
[1765513690643,2.4605,3244.0,3243.9,3.48821308]
[1765513690805,2.4605,3244.0,3243.9,4.28655151]
[1765513692314,2.9538,3244.0,3243.9,4.28655151]
[1765513694707,2.9538,3244.0,3243.9,3.48821308]
[1765513695430,1.985,3244.0,3243.9,3.48821308]
[1765513697345,2.4544,3244.0,3243.9,3.48821308]
[1765513697912,2.9437,3244.0,3243.9,3.48821308]
[1765513700237,2.9437,3244.0,3243.9,0.405504]
[1765513701942,2.9437,3244.0,3243.8,0.486]
[1765513702135,1.1666,3243.9,3243.8,3.56880411]
[1765513703936,1.1666,3243.9,3243.8,0.486]
[1765513704249,1.1666,3243.9,3243.8,3.56880411]
[1765513705055,0.4906,3243.9,3243.8,3.56880411]
[1765513705260,1.985,3244.0,3243.8,4.23408301]
[1765513707156,1.985,3244.0,3243.9,0.405504]
[1765513709367,1.985,3244.0,3243.9,3.48821308]
[1765513713666,2.4756,3244.0,3243.9,3.48821308]
[1765513714068,2.9591,3244.0,3243.8,0.486]
[1765513714361,0.9741,3243.9,3243.8,0.891504]
[1765513715671,1.1666,3243.9,3243.8,0.486]
[1765513716240,1.1666,3243.9,3243.7,0.001]
[1765513716449,0.9741,3243.8,3243.7,0.001]
[1765513717146,0.9741,3243.8,3243.7,3.08389915]
[1765513717647,0.9741,3243.8,3243.7,0.001]
[1765513719546,0.9741,3243.8,3243.7,0.92648175]
[1765513725364,0.9741,3243.8,3243.7,0.001]
[1765513725563,1.985,3244.0,3243.7,3.08388551]
[1765513725957,1.985,3244.0,3243.7,0.001]
[1765513728479,1.985,3244.0,3243.7,3.08389915]
[1765513729056,2.4799,3244.0,3243.7,3.08389915]
[1765513729371,0.4949,3243.9,3243.7,3.08389915]
[1765513729768,2.4799,3244.0,3243.7,3.08389915]
[1765513731692,1.985,3244.0,3243.7,3.08389915]
[1765513738168,2.4799,3244.0,3243.7,3.08389915]
[1765513739071,0.4949,3243.9,3243.7,3.08389915]
[1765513739995,1.985,3244.0,3243.7,3.08389915]
[1765513740195,1.985,3244.0,3243.9,6.10711608]
[1765513741181,1.985,3244.0,3243.9,7.03250647]
[1765513741377,2.4501,3244.0,3243.9,0.92539039]
[1765513741697,3.19001,3244.0,3243.7,0.487]
[1765513741868,0.4651,3243.8,3243.7,1.41239039]
[1765513744891,0.96,3243.8,3243.7,1.41239039]
[1765513745398,0.1853,3243.9,3243.7,4.49528954]
[1765513745579,2.4799,3244.0,3243.7,4.49528954]
[1765513746403,1.985,3244.0,3243.8,0.405504]
[1765513746784,1.985,3244.0,3243.8,1.33092865]
[1765513747814,0.4651,3243.9,3243.8,1.33092865]
[1765513748000,0.96,3243.9,3243.8,1.33092865]
[1765513748384,1.1453,3243.9,3243.8,0.92542465]
[1765513751309,1.1453,3243.9,3243.7,0.001]
[1765513751484,0.96,3243.8,3243.7,0.001]
[1765513766224,0.4651,3243.8,3243.7,0.001]